[Event "Late-Titled-Tuesday-Blitz-November-28-2023"]
[Site "Chess.com"]
[Date "2023.11.28"]
[Round "9"]
[White "DawnofEpiphany"]
[Black "PapaieDudu"]
[Result "1-0"]
[WhiteElo "2636"]
[BlackElo "2419"]
[TimeControl "180+1"]
[EndTime "15:43:32 PST"]
[Termination "DawnofEpiphany won by checkmate"]

1. Nf3 {[%clk 0:02:56.6]} 1... d5 {[%clk 0:02:59.7]} 2. g3 {[%clk 0:02:55.8]}
2... Nf6 {[%clk 0:03:00.1]} 3. Bg2 {[%clk 0:02:53.7]} 3... e6 {[%clk 0:03:00.6]}
4. O-O {[%clk 0:02:53.3]} 4... Be7 {[%clk 0:03:00.3]} 5. c4 {[%clk 0:02:51.2]}
5... O-O {[%clk 0:02:59.9]} 6. b3 {[%clk 0:02:50.3]} 6... b6 {[%clk 0:02:58.2]}
7. cxd5 {[%clk 0:02:49]} 7... exd5 {[%clk 0:02:53.3]} 8. d4 {[%clk 0:02:41.6]}
8... Re8 {[%clk 0:02:51.5]} 9. Nc3 {[%clk 0:02:41.1]} 9... Ba6 {[%clk
0:02:49.9]} 10. Bb2 {[%clk 0:02:40.8]} 10... Nbd7 {[%clk 0:02:49]} 11. Rc1
{[%clk 0:02:40.3]} 11... c6 {[%clk 0:02:48]} 12. Re1 {[%clk 0:02:39.4]} 12...
Bd6 {[%clk 0:02:45.7]} 13. e3 {[%clk 0:02:39.2]} 13... Rc8 {[%clk 0:02:45.1]}
14. Ne2 {[%clk 0:02:38.9]} 14... Ne4 {[%clk 0:02:44.5]} 15. Nf4 {[%clk
0:02:38.5]} 15... Ndf6 {[%clk 0:02:42.2]} 16. Ne5 {[%clk 0:02:36.1]} 16... Bb7
{[%clk 0:02:32.7]} 17. Re2 {[%clk 0:02:29.8]} 17... h6 {[%clk 0:02:31.2]} 18.
Rec2 {[%clk 0:02:28.8]} 18... c5 {[%clk 0:02:12.6]} 19. a4 {[%clk 0:01:45.6]}
19... Qe7 {[%clk 0:02:09.7]} 20. Qf1 {[%clk 0:01:35.5]} 20... Red8 {[%clk
0:02:06.1]} 21. Bh3 {[%clk 0:01:32]} 21... Rc7 {[%clk 0:02:03.8]} 22. Nf3 {[%clk
0:01:17.7]} 22... c4 {[%clk 0:01:49.6]} 23. bxc4 {[%clk 0:01:16.5]} 23... Ba6
{[%clk 0:01:50.1]} 24. Ne5 {[%clk 0:01:13.4]} 24... g5 {[%clk 0:01:26.7]} 25.
Nfd3 {[%clk 0:00:58.8]} 25... g4 {[%clk 0:01:20.3]} 26. Nxg4 {[%clk 0:00:51.7]}
26... dxc4 {[%clk 0:01:11.3]} 27. Ne1 {[%clk 0:00:17]} 27... Ng5 {[%clk
0:01:09.9]} 28. Nxf6+ {[%clk 0:00:16.2]} 28... Qxf6 {[%clk 0:01:09.7]} 29. Bg2
{[%clk 0:00:16.9]} 29... b5 {[%clk 0:01:00.3]} 30. axb5 {[%clk 0:00:16.3]} 30...
Bxb5 {[%clk 0:01:01.1]} 31. Bc3 {[%clk 0:00:17.2]} 31... Kh7 {[%clk 0:00:52.8]}
32. e4 {[%clk 0:00:17.5]} 32... Qg6 {[%clk 0:00:49.8]} 33. Qe2 {[%clk
0:00:16.8]} 33... Re7 {[%clk 0:00:46.1]} 34. e5 {[%clk 0:00:17.3]} 34... f6
{[%clk 0:00:40.6]} 35. f4 {[%clk 0:00:17.3]} 35... fxe5 {[%clk 0:00:41.3]} 36.
dxe5 {[%clk 0:00:17.2]} 36... Bc5+ {[%clk 0:00:37.9]} 37. Kh1 {[%clk 0:00:17.3]}
37... Rd3 {[%clk 0:00:14.9]} 38. fxg5 {[%clk 0:00:17.1]} 38... Re3 {[%clk
0:00:15.2]} 39. Qf1 {[%clk 0:00:16.8]} 39... Rf7 {[%clk 0:00:14.8]} 40. Nf3
{[%clk 0:00:16.3]} 40... Bc6 {[%clk 0:00:11.7]} 41. Rf2 {[%clk 0:00:13.7]} 41...
Qh5 {[%clk 0:00:05.1]} 42. Bd4 {[%clk 0:00:11]} 42... Rexf3 {[%clk 0:00:04.8]}
43. Bxc5 {[%clk 0:00:10.3]} 43... Rxf2 {[%clk 0:00:04.9]} 44. Bxf2 {[%clk
0:00:11.2]} 44... Bd7 {[%clk 0:00:03]} 45. Qe1 {[%clk 0:00:09.4]} 45... Qxg5
{[%clk 0:00:02.4]} 46. Rxc4 {[%clk 0:00:09.1]} 46... Re7 {[%clk 0:00:02]} 47.
Re4 {[%clk 0:00:09]} 47... Kg7 {[%clk 0:00:02.4]} 48. Re3 {[%clk 0:00:08.9]}
48... Bf5 {[%clk 0:00:02.7]} 49. Kg1 {[%clk 0:00:09.2]} 49... Qg6 {[%clk
0:00:03.2]} 50. h4 {[%clk 0:00:09.7]} 50... Qe6 {[%clk 0:00:03.7]} 51. Kh2
{[%clk 0:00:10.1]} 51... Bg4 {[%clk 0:00:04.1]} 52. Bg1 {[%clk 0:00:10.4]} 52...
Rf7 {[%clk 0:00:04.5]} 53. Re4 {[%clk 0:00:10.8]} 53... h5 {[%clk 0:00:04.8]}
54. Rf4 {[%clk 0:00:11.2]} 54... Bf5 {[%clk 0:00:04.5]} 55. Bd4 {[%clk
0:00:11.5]} 55... Rd7 {[%clk 0:00:04.1]} 56. Qf2 {[%clk 0:00:11.7]} 56... Kg6
{[%clk 0:00:04.5]} 57. Qe3 {[%clk 0:00:10.7]} 57... Rf7 {[%clk 0:00:04.5]} 58.
Be4 {[%clk 0:00:10.2]} 58... Bxe4 {[%clk 0:00:04.3]} 59. Qxe4+ {[%clk
0:00:11.1]} 59... Rf5 {[%clk 0:00:03.9]} 60. Qxf5+ {[%clk 0:00:10.8]} 60... Qxf5
{[%clk 0:00:04.8]} 61. Rxf5 {[%clk 0:00:11.5]} 61... Kxf5 {[%clk 0:00:05.6]} 62.
Kg2 {[%clk 0:00:12.1]} 62... a6 {[%clk 0:00:05.7]} 63. Kf2 {[%clk 0:00:12.5]}
63... a5 {[%clk 0:00:06]} 64. Ke2 {[%clk 0:00:12.9]} 64... a4 {[%clk 0:00:05.9]}
65. Ba1 {[%clk 0:00:13.8]} 65... Ke6 {[%clk 0:00:05.1]} 66. Kd2 {[%clk 0:00:14]}
66... Kd5 {[%clk 0:00:05.4]} 67. Kc2 {[%clk 0:00:14.4]} 67... Ke6 {[%clk
0:00:04.9]} 68. Kb1 {[%clk 0:00:14.9]} 68... Kd5 {[%clk 0:00:04.9]} 69. Ka2
{[%clk 0:00:15.3]} 69... Ke6 {[%clk 0:00:05.5]} 70. Ka3 {[%clk 0:00:15.8]} 70...
Kf5 {[%clk 0:00:06.2]} 71. Kxa4 {[%clk 0:00:16.2]} 71... Ke6 {[%clk 0:00:06.9]}
72. Kb3 {[%clk 0:00:16.6]} 72... Kf5 {[%clk 0:00:07.3]} 73. Kc2 {[%clk
0:00:17.1]} 73... Ke6 {[%clk 0:00:07.8]} 74. Kd3 {[%clk 0:00:17.6]} 74... Kf5
{[%clk 0:00:08.4]} 75. Ke3 {[%clk 0:00:18.1]} 75... Ke6 {[%clk 0:00:09]} 76. Kf4
{[%clk 0:00:18.3]} 76... Kd5 {[%clk 0:00:08.6]} 77. Kg5 {[%clk 0:00:18.8]} 77...
Ke6 {[%clk 0:00:09.1]} 78. Kxh5 {[%clk 0:00:19.2]} 78... Kf5 {[%clk 0:00:09.8]}
79. Kh6 {[%clk 0:00:19.4]} 79... Ke6 {[%clk 0:00:10.4]} 80. Kg6 {[%clk
0:00:19.8]} 80... Kd5 {[%clk 0:00:10.6]} 81. h5 {[%clk 0:00:20.4]} 81... Ke6
{[%clk 0:00:11.3]} 82. g4 {[%clk 0:00:20.8]} 82... Kd5 {[%clk 0:00:11.7]} 83. g5
{[%clk 0:00:21.3]} 83... Ke6 {[%clk 0:00:12.4]} 84. h6 {[%clk 0:00:21.9]} 84...
Kd5 {[%clk 0:00:12.2]} 85. Kg7 {[%clk 0:00:22.6]} 85... Ke6 {[%clk 0:00:12.9]}
86. g6 {[%clk 0:00:23.2]} 86... Kf5 {[%clk 0:00:13.3]} 87. Kf7 {[%clk
0:00:23.5]} 87... Kg5 {[%clk 0:00:13.1]} 88. h7 {[%clk 0:00:24.2]} 88... Kf5
{[%clk 0:00:13.1]} 89. e6 {[%clk 0:00:24.8]} 89... Kg5 {[%clk 0:00:13]} 90. e7
{[%clk 0:00:25.3]} 90... Kh6 {[%clk 0:00:12.4]} 91. Bg7+ {[%clk 0:00:25.5]}
91... Kg5 {[%clk 0:00:12.5]} 92. h8=Q {[%clk 0:00:25.7]} 92... Kg4 {[%clk
0:00:12.8]} 93. Bf6 {[%clk 0:00:25.4]} 93... Kf5 {[%clk 0:00:13.7]} 94. e8=Q
{[%clk 0:00:25]} 94... Kg4 {[%clk 0:00:13.8]} 95. Qe4+ {[%clk 0:00:24.7]} 95...
Kg3 {[%clk 0:00:13.7]} 96. Qhh4# {[%clk 0:00:24.3]} 1-0

[Event "Late-Titled-Tuesday-Blitz-November-28-2023"]
[Site "Chess.com"]
[Date "2023.11.28"]
[Round "9"]
[White "DamianoLew95"]
[Black "koncheto"]
[Result "1-0"]
[WhiteElo "2735"]
[BlackElo "2522"]
[TimeControl "180+1"]
[EndTime "15:43:54 PST"]
[Termination "DamianoLew95 won by resignation"]

1. e4 {[%clk 0:02:58]} 1... c5 {[%clk 0:02:54.3]} 2. Nf3 {[%clk 0:02:58.1]} 2...
d6 {[%clk 0:02:54.8]} 3. Bb5+ {[%clk 0:02:57.5]} 3... Nc6 {[%clk 0:02:54.7]} 4.
O-O {[%clk 0:02:56.9]} 4... Bd7 {[%clk 0:02:55]} 5. Bxc6 {[%clk 0:02:57]} 5...
Bxc6 {[%clk 0:02:55.1]} 6. Re1 {[%clk 0:02:57.9]} 6... g6 {[%clk 0:02:55]} 7. c3
{[%clk 0:02:57.7]} 7... Nf6 {[%clk 0:02:53]} 8. d3 {[%clk 0:02:57]} 8... Bg7
{[%clk 0:02:52.9]} 9. Bg5 {[%clk 0:02:45.3]} 9... O-O {[%clk 0:02:52.7]} 10. Qd2
{[%clk 0:02:43.4]} 10... Rb8 {[%clk 0:02:52.6]} 11. Bh6 {[%clk 0:02:43.2]} 11...
b5 {[%clk 0:02:52.3]} 12. Bxg7 {[%clk 0:02:43.2]} 12... Kxg7 {[%clk 0:02:53.2]}
13. Qf4 {[%clk 0:02:38.8]} 13... e5 {[%clk 0:02:36.7]} 14. Qe3 {[%clk
0:02:32.4]} 14... b4 {[%clk 0:02:36.1]} 15. Nbd2 {[%clk 0:02:29.1]} 15... bxc3
{[%clk 0:02:31.1]} 16. bxc3 {[%clk 0:02:30]} 16... Qa5 {[%clk 0:02:31]} 17. d4
{[%clk 0:02:29]} 17... cxd4 {[%clk 0:02:06.9]} 18. cxd4 {[%clk 0:02:29.9]} 18...
Rb4 {[%clk 0:01:55.6]} 19. Qc3 {[%clk 0:02:13]} 19... Bd7 {[%clk 0:01:50]} 20.
dxe5 {[%clk 0:02:04.1]} 20... dxe5 {[%clk 0:01:41.3]} 21. Qxe5 {[%clk 0:02:05]}
21... Qxe5 {[%clk 0:01:28.3]} 22. Nxe5 {[%clk 0:02:05.9]} 22... Be6 {[%clk
0:01:29.2]} 23. f3 {[%clk 0:01:40.5]} 23... Rc8 {[%clk 0:01:17.7]} 24. a3 {[%clk
0:01:24.6]} 24... Rb2 {[%clk 0:01:15.6]} 25. Nf1 {[%clk 0:01:24.7]} 25... Nh5
{[%clk 0:00:57]} 26. Nd3 {[%clk 0:01:01.6]} 26... Rb3 {[%clk 0:00:54.1]} 27. Nb4
{[%clk 0:00:42]} 27... Nf4 {[%clk 0:00:31.2]} 28. Reb1 {[%clk 0:00:34.6]} 28...
a5 {[%clk 0:00:24.5]} 29. Rxb3 {[%clk 0:00:29]} 29... Bxb3 {[%clk 0:00:24.3]}
30. Rb1 {[%clk 0:00:28.8]} 30... Be6 {[%clk 0:00:10.1]} 31. Nd5 {[%clk
0:00:19.5]} 31... Bxd5 {[%clk 0:00:03.3]} 32. exd5 {[%clk 0:00:20.4]} 32... Nxd5
{[%clk 0:00:03.3]} 33. Rb5 {[%clk 0:00:19.7]} 33... Nf4 {[%clk 0:00:03.8]} 34.
g3 {[%clk 0:00:16.3]} 34... Ne2+ {[%clk 0:00:02.9]} 35. Kf2 {[%clk 0:00:16.9]}
35... Nd4 {[%clk 0:00:03.8]} 36. Rxa5 {[%clk 0:00:15.7]} 36... Rc3 {[%clk
0:00:04.1]} 37. Ne3 {[%clk 0:00:14]} 37... Rb3 {[%clk 0:00:03.7]} 38. g4 {[%clk
0:00:11.7]} 38... Rb2+ {[%clk 0:00:04.1]} 39. Kg3 {[%clk 0:00:12.2]} 39... Ne2+
{[%clk 0:00:04.3]} 40. Kf2 {[%clk 0:00:06.3]} 40... Nf4+ {[%clk 0:00:03.4]} 41.
Kf1 {[%clk 0:00:04.3]} 41... Rxh2 {[%clk 0:00:03]} 42. Ra4 {[%clk 0:00:03.3]}
42... Nd3 {[%clk 0:00:03.1]} 43. Kg1 {[%clk 0:00:03.4]} 43... Re2 {[%clk
0:00:02.6]} 44. Nc4 {[%clk 0:00:03.7]} 44... Ra2 {[%clk 0:00:01.9]} 45. Ra7
{[%clk 0:00:03]} 45... Ra1+ {[%clk 0:00:02.4]} 46. Kg2 {[%clk 0:00:03.3]} 46...
Nc5 {[%clk 0:00:02.8]} 47. Ne5 {[%clk 0:00:03.2]} 47... Ra2+ {[%clk 0:00:03.1]}
48. Kg3 {[%clk 0:00:03.5]} 48... Kf6 {[%clk 0:00:03.4]} 49. f4 {[%clk
0:00:03.8]} 49... Ne4+ {[%clk 0:00:03]} 50. Kf3 {[%clk 0:00:03.9]} 50... Nd6
{[%clk 0:00:03.2]} 51. Ra6 {[%clk 0:00:03.4]} 51... Ke7 {[%clk 0:00:03.7]} 52.
Nc6+ {[%clk 0:00:03.3]} 52... Kd7 {[%clk 0:00:04]} 53. Nb4 {[%clk 0:00:03]}
53... Rb2 {[%clk 0:00:03.8]} 54. Ra7+ {[%clk 0:00:03.1]} 54... Ke6 {[%clk
0:00:03.8]} 55. Ra6 {[%clk 0:00:03.2]} 55... Rb3+ {[%clk 0:00:04.2]} 56. Ke2
{[%clk 0:00:03.8]} 56... Kd7 {[%clk 0:00:04.5]} 57. Kd2 {[%clk 0:00:04.1]} 57...
Ne4+ {[%clk 0:00:04.4]} 58. Kc2 {[%clk 0:00:04.2]} 58... Rg3 {[%clk 0:00:04.6]}
59. Nd5 {[%clk 0:00:03.6]} 59... Rxg4 {[%clk 0:00:04.2]} 60. Ra4 {[%clk
0:00:04.3]} 60... Ke6 {[%clk 0:00:02.7]} 61. Ne3 {[%clk 0:00:03.9]} 61... Rxf4
{[%clk 0:00:02.9]} 62. Kb2 {[%clk 0:00:01.9]} 62... h5 {[%clk 0:00:01.8]} 63.
Ra6+ {[%clk 0:00:02.2]} 63... Ke7 {[%clk 0:00:01.9]} 64. Ra7+ {[%clk 0:00:02.7]}
64... Kf8 {[%clk 0:00:02.1]} 65. a4 {[%clk 0:00:03.5]} 65... Kg7 {[%clk
0:00:02.5]} 66. Ra8 {[%clk 0:00:03.9]} 66... Nc5 {[%clk 0:00:02.8]} 67. a5
{[%clk 0:00:03.8]} 67... Rb4+ {[%clk 0:00:02.3]} 68. Kc3 {[%clk 0:00:04.1]}
68... Ra4 {[%clk 0:00:03.2]} 69. Nd5 {[%clk 0:00:04.1]} 69... h4 {[%clk
0:00:03.3]} 70. Nb6 {[%clk 0:00:04.7]} 70... Ra1 {[%clk 0:00:03.3]} 71. Kb4
{[%clk 0:00:04.7]} 71... Nb7 {[%clk 0:00:03.7]} 72. a6 {[%clk 0:00:03.7]} 72...
Na5 {[%clk 0:00:04.3]} 73. Na4 {[%clk 0:00:03.6]} 73... Nc6+ {[%clk 0:00:04.5]}
74. Kb5 {[%clk 0:00:04.3]} 74... Nd4+ {[%clk 0:00:05]} 75. Ka5 {[%clk
0:00:04.8]} 75... h3 {[%clk 0:00:04.1]} 76. Rc8 {[%clk 0:00:03.6]} 76... Nb3+
{[%clk 0:00:03.5]} 77. Kb4 {[%clk 0:00:03.8]} 77... Nd4 {[%clk 0:00:03.9]} 78.
a7 {[%clk 0:00:03.6]} 78... h2 {[%clk 0:00:04.4]} 79. a8=Q {[%clk 0:00:03.7]}
79... h1=Q {[%clk 0:00:03.9]} 80. Rg8+ {[%clk 0:00:04]} 80... Kf6 {[%clk
0:00:04.2]} 81. Qd8+ {[%clk 0:00:04.4]} 81... Ke5 {[%clk 0:00:04]} 82. Qc7+
{[%clk 0:00:04.2]} 82... Ke4 {[%clk 0:00:03.8]} 83. Re8+ {[%clk 0:00:03.9]}
83... Ne6 {[%clk 0:00:04.1]} 84. Nc3+ {[%clk 0:00:04.2]} 84... Kf5 {[%clk
0:00:04.1]} 85. Rxe6 {[%clk 0:00:01.3]} 85... fxe6 {[%clk 0:00:03.8]} 86. Qf7+
{[%clk 0:00:01.7]} 86... Kg5 {[%clk 0:00:04.2]} 87. Qe7+ {[%clk 0:00:02]} 87...
Kh6 {[%clk 0:00:04.1]} 88. Qf8+ {[%clk 0:00:02.6]} 88... Kh5 {[%clk 0:00:04.1]}
89. Qh8+ {[%clk 0:00:02.9]} 89... Kg4 {[%clk 0:00:04.1]} 90. Qd4+ {[%clk
0:00:03.4]} 90... Kh3 {[%clk 0:00:03.4]} 91. Qe3+ {[%clk 0:00:03.2]} 91... Kh2
{[%clk 0:00:03.6]} 92. Qf4+ {[%clk 0:00:03.5]} 92... Kg1 {[%clk 0:00:03.5]} 93.
Ne2+ {[%clk 0:00:03.8]} 93... Kg2 {[%clk 0:00:03.9]} 94. Qg3+ {[%clk 0:00:03.7]}
94... Kf1 {[%clk 0:00:04.4]} 95. Nd4 {[%clk 0:00:03.7]} 95... Rb1+ {[%clk
0:00:04.5]} 96. Kc3 {[%clk 0:00:03.7]} 96... Qg2 {[%clk 0:00:03.7]} 97. Qd3+
{[%clk 0:00:03.5]} 97... Kf2 {[%clk 0:00:03.7]} 98. Qxb1 {[%clk 0:00:03.5]}
98... Qe4 {[%clk 0:00:03.1]} 99. Qxe4 {[%clk 0:00:03.4]} 1-0

[Event "Late-Titled-Tuesday-Blitz-November-28-2023"]
[Site "Chess.com"]
[Date "2023.11.28"]
[Round "10"]
[White "ural58"]
[Black "NotFischer"]
[Result "1-0"]
[WhiteElo "2471"]
[BlackElo "2349"]
[TimeControl "180+1"]
[EndTime "15:47:32 PST"]
[Termination "ural58 won by resignation"]

1. e4 {[%clk 0:03:00.9]} 1... d5 {[%clk 0:02:59.6]} 2. exd5 {[%clk 0:02:54.3]}
2... Qxd5 {[%clk 0:03:00.5]} 3. Nc3 {[%clk 0:02:53.4]} 3... Qd6 {[%clk
0:03:00.3]} 4. d4 {[%clk 0:02:52.7]} 4... Nf6 {[%clk 0:03:00.5]} 5. Nf3 {[%clk
0:02:52]} 5... c6 {[%clk 0:03:00.9]} 6. g3 {[%clk 0:02:51.2]} 6... Bg4 {[%clk
0:03:01.1]} 7. Bg2 {[%clk 0:02:50.3]} 7... e6 {[%clk 0:02:57.6]} 8. h3 {[%clk
0:02:49.3]} 8... Bxf3 {[%clk 0:02:56.4]} 9. Bxf3 {[%clk 0:02:48.5]} 9... Qc7
{[%clk 0:02:52.9]} 10. O-O {[%clk 0:02:47.2]} 10... Bd6 {[%clk 0:02:51.7]} 11.
Ne2 {[%clk 0:02:44.6]} 11... h5 {[%clk 0:02:43.2]} 12. h4 {[%clk 0:02:43.3]}
12... Nbd7 {[%clk 0:02:42.2]} 13. c4 {[%clk 0:02:42.8]} 13... c5 {[%clk
0:02:36]} 14. b3 {[%clk 0:02:37.4]} 14... cxd4 {[%clk 0:02:25.8]} 15. Nxd4
{[%clk 0:02:30.6]} 15... a5 {[%clk 0:02:25.1]} 16. Nb5 {[%clk 0:02:30.1]} 16...
Qb6 {[%clk 0:01:47.5]} 17. Nxd6+ {[%clk 0:02:24]} 17... Ke7 {[%clk 0:01:44.2]}
18. Ba3 {[%clk 0:02:21.7]} 18... Nc5 {[%clk 0:01:44.1]} 19. Nxb7 {[%clk
0:02:17.9]} 1-0

[Event "Late-Titled-Tuesday-Blitz-November-28-2023"]
[Site "Chess.com"]
[Date "2023.11.28"]
[Round "10"]
[White "expii"]
[Black "hristos03"]
[Result "0-1"]
[WhiteElo "2221"]
[BlackElo "2359"]
[TimeControl "180+1"]
[EndTime "15:49:37 PST"]
[Termination "hristos03 won by resignation"]

1. e4 {[%clk 0:02:59.4]} 1... c5 {[%clk 0:02:48.8]} 2. Nf3 {[%clk 0:02:59.2]}
2... d6 {[%clk 0:02:34.6]} 3. d4 {[%clk 0:02:58.6]} 3... cxd4 {[%clk 0:02:35.1]}
4. Nxd4 {[%clk 0:02:59.5]} 4... Nf6 {[%clk 0:02:34.1]} 5. Nc3 {[%clk 0:02:59.2]}
5... a6 {[%clk 0:02:32.4]} 6. g3 {[%clk 0:02:59.6]} 6... e5 {[%clk 0:02:28.4]}
7. Nde2 {[%clk 0:02:58.2]} 7... Be7 {[%clk 0:02:27.7]} 8. Bg2 {[%clk 0:02:58.5]}
8... O-O {[%clk 0:02:27]} 9. O-O {[%clk 0:02:58.7]} 9... b5 {[%clk 0:02:22.8]}
10. a3 {[%clk 0:02:55.7]} 10... Bb7 {[%clk 0:02:18.7]} 11. h3 {[%clk 0:02:49.1]}
11... Nbd7 {[%clk 0:02:11.5]} 12. Be3 {[%clk 0:02:47.6]} 12... Rc8 {[%clk
0:02:09.2]} 13. f4 {[%clk 0:02:43.9]} 13... exf4 {[%clk 0:02:06.5]} 14. gxf4
{[%clk 0:02:44.8]} 14... Nc5 {[%clk 0:02:04.7]} 15. Ng3 {[%clk 0:02:38.5]} 15...
Re8 {[%clk 0:02:02.4]} 16. e5 {[%clk 0:02:25.3]} 16... Bxg2 {[%clk 0:01:50]} 17.
Kxg2 {[%clk 0:02:15.4]} 17... dxe5 {[%clk 0:01:43.9]} 18. fxe5 {[%clk 0:02:08]}
18... Nfd7 {[%clk 0:01:43.6]} 19. Bd4 {[%clk 0:01:55.8]} 19... Ne6 {[%clk
0:01:39]} 20. Nf5 {[%clk 0:01:52.5]} 20... Bf8 {[%clk 0:01:32]} 21. Ne4 {[%clk
0:01:26.1]} 21... Nxd4 {[%clk 0:01:22.8]} 22. Qxd4 {[%clk 0:01:27]} 22... Nxe5
{[%clk 0:01:19.9]} 23. Qxd8 {[%clk 0:01:25.2]} 23... Rcxd8 {[%clk 0:01:13.6]}
24. Rad1 {[%clk 0:01:23.9]} 24... Rxd1 {[%clk 0:00:59.4]} 25. Rxd1 {[%clk
0:01:24.8]} 25... Nc4 {[%clk 0:00:58.9]} 26. Nfd6 {[%clk 0:01:19.4]} 26... Rxe4
{[%clk 0:00:51.1]} 0-1

[Event "Late-Titled-Tuesday-Blitz-November-28-2023"]
[Site "Chess.com"]
[Date "2023.11.28"]
[Round "10"]
[White "Korchmar_Vasiliy"]
[Black "MKlose11"]
[Result "1-0"]
[WhiteElo "2735"]
[BlackElo "2611"]
[TimeControl "180+1"]
[EndTime "15:49:52 PST"]
[Termination "Korchmar_Vasiliy won by checkmate"]

1. e4 {[%clk 0:03:00.9]} 1... e6 {[%clk 0:02:59.9]} 2. d4 {[%clk 0:03:01]} 2...
d5 {[%clk 0:02:59.9]} 3. e5 {[%clk 0:03:01.8]} 3... c5 {[%clk 0:02:59.8]} 4. c3
{[%clk 0:03:02.5]} 4... Qb6 {[%clk 0:02:55.7]} 5. Nf3 {[%clk 0:03:02.8]} 5...
Nc6 {[%clk 0:02:53.9]} 6. Be2 {[%clk 0:03:02.9]} 6... f6 {[%clk 0:02:54.2]} 7.
O-O {[%clk 0:03:01.2]} 7... fxe5 {[%clk 0:02:53.2]} 8. dxe5 {[%clk 0:03:01.9]}
8... Nh6 {[%clk 0:02:53.5]} 9. c4 {[%clk 0:02:59.2]} 9... d4 {[%clk 0:02:50.4]}
10. Bxh6 {[%clk 0:02:17]} 10... Qxb2 {[%clk 0:02:40.8]} 11. Nbd2 {[%clk
0:02:17.9]} 11... gxh6 {[%clk 0:02:40.1]} 12. Ne4 {[%clk 0:02:11.8]} 12... Be7
{[%clk 0:02:34.5]} 13. Ne1 {[%clk 0:02:05.2]} 13... O-O {[%clk 0:02:30]} 14. Nd3
{[%clk 0:02:04.2]} 14... Qa3 {[%clk 0:02:30]} 15. Rb1 {[%clk 0:01:58]} 15... b6
{[%clk 0:02:26.6]} 16. Rb3 {[%clk 0:01:56.5]} 16... Qxa2 {[%clk 0:02:19.3]} 17.
Nc1 {[%clk 0:01:55.2]} 17... Qa6 {[%clk 0:02:12.9]} 18. Rg3+ {[%clk 0:01:54.7]}
18... Kh8 {[%clk 0:02:12.7]} 19. Nd3 {[%clk 0:01:37.6]} 19... Bd7 {[%clk
0:02:10]} 20. Qd2 {[%clk 0:01:37.4]} 20... Rf7 {[%clk 0:01:33.5]} 21. Qxh6
{[%clk 0:01:35.2]} 21... Qa2 {[%clk 0:01:18.6]} 22. Bh5 {[%clk 0:01:31.7]} 22...
Raf8 {[%clk 0:01:13.6]} 23. Bxf7 {[%clk 0:01:22.9]} 23... Rxf7 {[%clk
0:01:14.5]} 24. Nf4 {[%clk 0:01:15.5]} 24... Nxe5 {[%clk 0:01:12.9]} 25. Qh5
{[%clk 0:01:15.5]} 25... Rf5 {[%clk 0:01:07.4]} 26. Qh6 {[%clk 0:01:13.5]} 26...
Bf8 {[%clk 0:01:00.4]} 27. Nf6 {[%clk 0:01:11.1]} 27... Bxh6 {[%clk 0:00:45.6]}
28. Rg8# {[%clk 0:01:10]} 1-0

[Event "Late-Titled-Tuesday-Blitz-November-28-2023"]
[Site "Chess.com"]
[Date "2023.11.28"]
[Round "10"]
[White "SilverCityIndigo"]
[Black "maurovargas01"]
[Result "1-0"]
[WhiteElo "2435"]
[BlackElo "1844"]
[TimeControl "180+1"]
[EndTime "15:49:52 PST"]
[Termination "SilverCityIndigo won by checkmate"]

1. e4 {[%clk 0:02:56.4]} 1... e5 {[%clk 0:02:58.8]} 2. Nf3 {[%clk 0:02:55.8]}
2... Nf6 {[%clk 0:02:58.6]} 3. d4 {[%clk 0:02:52.5]} 3... d6 {[%clk 0:02:44.9]}
4. dxe5 {[%clk 0:02:51.9]} 4... dxe5 {[%clk 0:02:43.8]} 5. Qxd8+ {[%clk
0:02:51.2]} 5... Kxd8 {[%clk 0:02:43]} 6. Nxe5 {[%clk 0:02:51.6]} 6... Be6
{[%clk 0:02:41]} 7. f3 {[%clk 0:02:48.6]} 7... Bd6 {[%clk 0:02:33]} 8. Nd3
{[%clk 0:02:44.1]} 8... Nc6 {[%clk 0:02:29.8]} 9. Nc3 {[%clk 0:02:40.3]} 9...
Nd4 {[%clk 0:02:27.6]} 10. Kd1 {[%clk 0:02:36.3]} 10... Ke7 {[%clk 0:02:22.1]}
11. e5 {[%clk 0:02:34.8]} 11... Bxe5 {[%clk 0:02:04.7]} 12. Nxe5 {[%clk
0:02:35.7]} 12... Rhd8 {[%clk 0:02:00.5]} 13. Bd3 {[%clk 0:02:35]} 13... c5
{[%clk 0:01:55.2]} 14. Re1 {[%clk 0:02:25.5]} 14... c4 {[%clk 0:01:54.5]} 15.
Nxc4 {[%clk 0:02:25.4]} 15... Kf8 {[%clk 0:01:51.3]} 16. Na5 {[%clk 0:02:19.8]}
16... b6 {[%clk 0:01:46.4]} 17. Nb3 {[%clk 0:02:16.6]} 17... Nxb3 {[%clk
0:01:32.6]} 18. axb3 {[%clk 0:02:16.3]} 18... Bxb3 {[%clk 0:01:32.4]} 19. cxb3
{[%clk 0:02:17.2]} 19... Rxd3+ {[%clk 0:01:32.2]} 20. Kc2 {[%clk 0:02:17.5]}
20... Rad8 {[%clk 0:01:30.9]} 21. Rxa7 {[%clk 0:02:16.9]} 21... R3d6 {[%clk
0:01:24.2]} 22. Ree7 {[%clk 0:02:11.9]} 22... Rc6 {[%clk 0:01:09.1]} 23. Rxf7+
{[%clk 0:02:11.4]} 23... Kg8 {[%clk 0:01:07.6]} 24. Rxg7+ {[%clk 0:02:11.6]}
24... Kh8 {[%clk 0:01:06.8]} 25. Bg5 {[%clk 0:02:09.5]} 25... Rf8 {[%clk
0:00:59]} 26. Bxf6 {[%clk 0:02:07.4]} 26... Rfxf6 {[%clk 0:00:58.1]} 27. Rxh7+
{[%clk 0:02:07.6]} 27... Kg8 {[%clk 0:00:53.9]} 28. Rhc7 {[%clk 0:02:04.9]}
28... b5 {[%clk 0:00:52.6]} 29. Rxc6 {[%clk 0:02:04.5]} 29... Rxc6 {[%clk
0:00:52.3]} 30. b4 {[%clk 0:02:05.1]} 30... Rc4 {[%clk 0:00:50.9]} 31. Kb3
{[%clk 0:02:05.6]} 31... Kf8 {[%clk 0:00:50.2]} 32. Nxb5 {[%clk 0:02:05.5]}
32... Rc1 {[%clk 0:00:49.1]} 33. Nc3 {[%clk 0:02:04.2]} 33... Ke8 {[%clk
0:00:46.2]} 34. b5 {[%clk 0:02:04.7]} 34... Kd8 {[%clk 0:00:45.3]} 35. b6 {[%clk
0:02:05.2]} 35... Kc8 {[%clk 0:00:44.8]} 36. Nb5 {[%clk 0:01:56.4]} 36... Kb8
{[%clk 0:00:38.2]} 37. Rc7 {[%clk 0:01:53.4]} 37... Rg1 {[%clk 0:00:34.1]} 38.
Nd6 {[%clk 0:01:53]} 38... Rxg2 {[%clk 0:00:32.9]} 39. Rc8# {[%clk 0:01:53.4]}
1-0